bitfinex/quotes_ETHUSD_20260304
["timestamp","ask_amount","ask_price","bid_price","bid_amount"]
[1772654940977,3.44695348,2165.9,2164.3,2.35103718]
[1772654941116,0.42152123,2165.8,2164.3,2.35103718]
[1772654941321,3.44695348,2165.9,2164.3,2.35103718]
[1772654941648,0.42171496,2165.8,2164.3,2.35103718]
[1772654941866,3.44695291,2165.9,2164.4,1.15505451]
[1772654942016,2.10817561,2166.3,2164.5,2.35103718]
[1772654942017,2.29266156,2166.3,2164.5,2.35103718]
[1772654942223,0.002,2165.0,2164.5,2.35103718]
[1772654942516,3.44671777,2166.3,2164.5,2.35103718]
[1772654942517,2.29266156,2166.3,2164.5,2.35103718]
[1772654942718,2.29266156,2166.2,2164.7,2.35103718]
[1772654942924,2.29266156,2166.2,2164.8,3.69003718]
[1772654943161,2.29266156,2166.2,2164.8,2.35103718]
[1772654943316,4.61816581,2166.5,2165.0,2.35103718]
[1772654943317,0.002,2166.5,2165.0,2.35103718]
[1772654943516,1.57536468,2166.4,2165.0,2.35103718]
[1772654943735,1.15398818,2166.4,2165.0,2.35103718]
[1772654944163,2.29266156,2166.2,2164.3,2.35103718]
[1772654944325,2.29266156,2166.2,2164.2,1.15516126]
[1772654944326,2.29266156,2165.8,2164.2,1.15516126]
[1772654944545,2.29266156,2165.6,2164.2,1.15516126]
[1772654944753,2.29266156,2165.4,2164.2,1.15516126]
[1772654945572,2.29266156,2165.4,2164.2,3.50619844]
[1772654946356,3.44719886,2165.4,2164.2,3.50619844]
[1772654947398,2.29266156,2165.3,2164.2,1.15516126]
[1772654947550,2.29266156,2165.3,2164.2,2.49716126]
[1772654948271,1.15462774,2165.2,2164.2,2.49716126]
[1772654948859,3.44727371,2165.3,2164.2,2.49716126]
[1772654949774,2.29266156,2165.2,2164.2,2.49716126]
[1772654950377,4.61829769,2165.5,2164.3,2.35103718]
[1772654950378,2.29266156,2165.5,2164.3,2.35103718]
[1772654950688,2.29266156,2165.3,2164.2,1.15516126]
[1772654951762,2.29266156,2165.1,2164.0,1.15524017]
[1772654952672,1.15473441,2165.0,2163.9,4.62207208]
[1772654952880,2.29266156,2164.9,2163.9,4.62207208]
[1772654953088,2.29266156,2164.9,2163.9,1.15632141]
[1772654953258,2.29266156,2164.9,2163.9,0.001]
[1772654954572,2.29266156,2165.2,2164.0,2.35103718]
[1772654954780,1.15473441,2165.0,2164.1,1.15521463]
[1772654955152,2.29266156,2165.1,2164.1,1.15521463]
[1772654955590,2.29266156,2165.1,2164.2,0.001]
[1772654955760,0.002,2165.4,2164.2,0.001]
[1772654955955,0.42176018,2165.3,2164.2,2.35203718]
[1772654956160,0.422136,2165.2,2164.2,2.35203718]
[1772654956362,0.002,2165.4,2164.2,2.35203718]
[1772654956891,0.002,2165.4,2164.4,2.35103718]
[1772654957086,0.002,2165.4,2164.6,2.35103718]
[1772654957588,3.44691856,2165.9,2164.6,2.35103718]
[1772654957784,0.42245649,2165.8,2164.6,2.35103718]
[1772654957987,3.44691856,2165.9,2164.6,2.35103718]
[1772654958284,2.71516696,2165.8,2164.6,2.35103718]
[1772654958488,2.29266156,2165.8,2164.6,2.35103718]
[1772654958692,2.54001105,2165.7,2164.6,2.35103718]
[1772654958888,1.15441448,2165.6,2164.7,1.15489444]
[1772654959369,2.53994148,2165.5,2164.3,8.22393294]
[1772654959689,2.11746007,2165.5,2164.3,8.22393294]
[1772654960568,2.11746007,2165.5,2164.4,2.26608921]
[1772654960777,3.27180606,2165.8,2164.6,2.25666846]
[1772654961087,3.12567658,2165.7,2164.7,0.00941944]
[1772654961395,3.12567658,2165.7,2164.6,2.25666846]
[1772654961396,3.27180167,2165.8,2164.6,2.25666846]
[1772654961591,0.42254293,2165.7,2164.6,2.25666846]
[1772654961764,2.53994585,2165.6,2164.5,1.15500115]
[1772654961960,2.11746007,2165.6,2164.6,1.347]
[1772654962874,1.15446779,2165.5,2164.7,1.15489444]
[1772654963273,3.27190246,2165.6,2164.7,1.15489444]
[1772654965193,4.61724891,2165.8,2164.7,3.4115629]
[1772654965194,1.15434491,2165.8,2164.7,3.4115629]
[1772654965390,0.42256262,2165.7,2164.8,0.04619364]
[1772654965567,0.42243919,2165.6,2164.8,0.04619364]
[1772654965763,3.27180498,2165.8,2164.8,0.04619364]
[1772654966065,0.42241306,2165.7,2164.8,0.04619364]
[1772654966261,1.449,2166.2,2164.8,0.04619364]
[1772654966262,2.23521747,2166.2,2164.8,2.23114906]
[1772654966493,2.23521747,2166.2,2164.8,2.18495542]
[1772654967197,3.81175653,2166.1,2165.0,2.18495542]
[1772654967372,3.38936547,2166.1,2165.0,2.18495542]
[1772654969399,3.38936547,2166.1,2165.1,3.33963649]
[1772654969581,3.38938547,2166.1,2165.1,3.33963649]
[1772654969975,2.23521747,2166.1,2165.2,1.347]
[1772654970176,3.38937064,2166.1,2165.2,1.347]
[1772654970572,3.38937651,2166.1,2165.2,1.347]
[1772654970973,0.002,2166.0,2165.2,1.347]
[1772654971195,2.23521747,2165.9,2165.3,1.15457442]
[1772654971495,0.002,2166.0,2165.3,1.15457442]
[1772654972978,1.15620322,2166.0,2165.3,1.15457442]
[1772654973184,0.002,2166.0,2165.3,1.15457442]
[1772654974580,2.23521747,2165.9,2164.7,3.33981483]
[1772654974782,2.23521747,2165.9,2164.2,0.001]
[1772654974783,2.23521747,2165.7,2164.4,1.15501901]
[1772654975001,2.23521747,2165.5,2164.4,1.15501816]
[1772654975309,2.23521747,2165.1,2164.2,1.15616126]
[1772654977302,4.61851099,2165.3,2164.2,1.15616126]
[1772654977303,3.38995188,2165.0,2164.2,1.15616126]
[1772654977488,2.23521747,2164.9,2164.2,1.15616126]
[1772654978172,2.23521747,2164.9,2164.2,0.001]
[1772654979208,4.61812997,2165.4,2164.2,0.001]
[1772654979209,3.3898405,2165.3,2164.2,0.001]
[1772654979385,5.35880136,2165.2,2164.2,0.001]
[1772654979585,2.23521747,2165.2,2164.2,0.001]
[1772654981283,3.39000522,2164.9,2164.2,0.001]
[1772654981605,2.23521747,2164.8,2164.2,0.001]
[1772654983218,2.23521747,2164.6,2163.7,1.15542486]
[1772654983514,2.23521747,2164.6,2163.7,1e-08]
[1772654983515,2.23521747,2164.4,2163.7,1e-08]
[1772654984800,3.39015309,2164.7,2164.1,0.001]
[1772654984997,2.65801048,2164.6,2163.7,1e-08]
[1772654985196,2.23521747,2164.6,2163.7,1e-08]
[1772654985395,2.23521747,2164.4,2163.9,0.001]
[1772654987393,2.23521747,2164.3,2163.9,0.001]
[1772654989420,1.15513804,2164.3,2163.9,0.001]
[1772654989588,3.19584835,2164.3,2163.9,0.001]
[1772654989792,3.19584835,2164.3,2163.1,0.1702834]
[1772654989793,2.04071031,2163.9,2163.1,0.1702834]
[1772654989992,1.3,2164.2,2163.2,1.96094644]
[1772654990402,1.3,2164.2,2163.4,1.96094644]
[1772654991506,1.3,2164.2,2163.5,1.15553501]
[1772654993822,1.3,2164.2,2163.6,1.96094644]
[1772654993997,1.3,2164.2,2163.5,1.15553501]
[1772654993998,1.15510123,2164.4,2163.5,3.11648145]
[1772654994618,3.19581154,2164.4,2163.6,1.339]
[1772654994817,3.1957779,2164.4,2163.6,1.339]
[1772654995014,3.1957779,2164.4,2163.5,3.11648145]
[1772654995220,3.1957779,2164.4,2163.5,4.45548145]
[1772654995523,2.04071031,2164.3,2163.5,2.49553501]
[1772654997095,2.04071031,2164.2,2163.5,1.15553501]
[1772654997705,2.04071031,2164.2,2163.7,0.001]
[1772654997907,0.002,2164.1,2163.7,0.001]
[1772654999031,9.29770978,2165.2,2163.7,1.96194644]
[1772654999032,2.04071031,2165.2,2163.7,1.96194644]
[1772654999208,2.04071031,2165.2,2163.9,1.96094644]
[1772654999527,0.002,2164.6,2163.9,1.96094644]
[1772655000131,0.002,2164.6,2164.1,1.96094644]
[1772655000632,0.002,2164.6,2164.2,1.337]
[1772655000832,3.19520326,2165.5,2164.4,1.96094644]
[1772655001340,2.04071031,2165.4,2164.4,1.96094644]
[1772655002898,2.04071031,2165.2,2164.2,1.15516126]
[1772655003102,2.04071031,2165.2,2164.2,2.49416126]
[1772655004025,2.04071031,2165.2,2164.2,4.4551077]
[1772655004422,2.04071031,2165.2,2164.3,1.96094644]
[1772655005126,3.1953812,2165.2,2164.4,1.15505451]
[1772655006228,2.04071031,2165.5,2164.5,1.96094644]
[1772655006537,2.04071031,2165.5,2164.4,1.15505451]
[1772655006538,2.04071031,2165.3,2164.2,4.62046644]
[1772655006738,2.04071031,2165.1,2164.2,1.15516126]
[1772655006932,2.04071031,2165.1,2164.2,1.96094644]
[1772655007948,2.04071031,2165.1,2164.3,1.15510788]
[1772655008517,2.04071031,2165.1,2164.3,3.11605432]
[1772655008930,3.19523411,2165.4,2164.4,1.341]
[1772655009240,2.04071031,2165.4,2164.4,3.30194644]
[1772655009847,2.04071031,2165.4,2164.6,1.15494779]
[1772655010430,3.19523676,2165.4,2164.6,1.15494779]
[1772655010620,2.04071031,2165.4,2164.6,1.15494779]
[1772655011838,2.04071031,2165.4,2164.5,4.61979118]
[1772655011839,1.15457442,2165.3,2164.5,4.61979118]
[1772655012154,2.04071031,2165.2,2164.5,0.001]
[1772655012335,2.04271031,2165.0,2164.5,0.001]
[1772655012534,0.002,2165.0,2164.5,0.001]
[1772655012839,2.04071031,2165.6,2164.5,1.96194644]
[1772655014132,2.04071031,2165.6,2164.7,1.96094644]
[1772655015238,3.19513475,2165.6,2164.7,1.96094644]
[1772655015420,2.04071031,2165.6,2164.7,1.96094644]
[1772655016047,2.04071031,2165.6,2164.8,1.15484109]
[1772655016832,0.002,2165.7,2165.0,1.96094644]
[1772655017176,0.002,2165.7,2164.8,1.15484109]
[1772655017177,2.04071031,2165.6,2164.8,1.15484109]
[1772655017318,0.42285146,2165.5,2164.5,0.001]
[1772655017523,2.46360494,2165.4,2164.5,0.001]
[1772655017724,2.04071031,2165.4,2164.5,1.15599754]
[1772655017950,2.04071031,2165.2,2164.5,0.001]
[1772655019020,0.42286972,2165.1,2164.0,0.001]
[1772655019252,1.15457442,2165.3,2164.0,0.001]
[1772655019253,1.93160949,2164.9,2164.0,0.001]
[1772655019558,1.93160949,2164.7,2164.0,0.001]
[1772655019755,1.93160949,2164.7,2164.0,1.15625085]
[1772655019948,1.93160949,2164.5,2164.0,1.15625085]
[1772655020263,1.93160949,2164.5,2164.0,0.001]
[1772655021157,1.93160949,2164.3,2164.0,0.001]
[1772655021958,3.08671804,2164.3,2164.0,0.001]
[1772655022368,1.93160949,2164.3,2164.0,0.001]
[1772655022545,3.08663176,2164.5,2164.0,0.001]
[1772655022948,1.93160949,2164.5,2164.0,0.001]
[1772655023148,3.08648321,2164.8,2164.0,0.001]
[1772655023439,2.35504807,2164.7,2164.0,0.001]
[1772655023639,1.93160949,2164.7,2164.0,0.001]
[1772655024052,3.08655728,2164.6,2164.0,0.001]
[1772655024253,1.93160949,2164.5,2164.0,0.001]
[1772655025458,1.15494779,2164.6,2164.0,0.001]
[1772655025845,3.08655728,2164.6,2164.0,0.001]
[1772655026047,1.15505451,2164.4,2164.0,0.001]
[1772655026369,3.08665221,2164.5,2164.0,0.001]
[1772655026666,3.08665221,2164.5,2164.2,0.001]
[1772655027073,1.93160949,2164.5,2164.2,0.001]
[1772655027277,0.002,2165.0,2164.2,0.001]
[1772655027586,1.96445308,2164.8,2164.2,0.001]
[1772655028277,3.11934752,2164.7,2164.2,0.001]
[1772655028581,1.96445308,2164.6,2164.2,0.001]
[1772655029145,1.96445308,2164.6,2164.0,0.001]
[1772655029451,1.15489444,2164.7,2164.0,0.001]
[1772655029452,1.96445308,2164.4,2164.0,0.001]
[1772655030170,1.15510788,2164.3,2164.0,0.001]
[1772655030354,3.11956096,2164.3,2164.0,0.001]
[1772655030541,1.96445308,2164.2,2164.0,0.001]
[1772655030971,4.62017327,2164.5,2164.0,0.001]
[1772655030972,3.11947553,2164.5,2164.0,0.001]
[1772655031271,1.96445308,2164.8,2164.0,0.001]
[1772655032473,1.15489444,2164.7,2164.0,0.001]
[1772655032677,3.11934752,2164.7,2164.0,0.001]
[1772655033874,1.96445308,2164.9,2164.0,1.94068866]
[1772655034579,1.15484109,2164.8,2164.1,1.15521463]
[1772655034778,3.1192838,2164.9,2164.1,1.15521463]
[1772655035147,4.62104896,2165.0,2164.1,1.15521463]
[1772655035148,0.002,2165.0,2164.1,1.15521463]
[1772655035352,1.96445308,2164.9,2164.1,3.09490329]
[1772655035994,0.002,2165.0,2164.2,1.93968866]
[1772655036580,1.96645308,2165.0,2164.3,1.15510788]
[1772655038066,0.002,2165.0,2164.4,1.93968866]
[1772655038656,0.002,2165.0,2164.5,3.09468981]
[1772655040257,0.002,2165.2,2164.6,1.93968866]
[1772655040658,0.002,2165.2,2164.7,1.15489444]
[1772655041777,0.002,2164.8,2164.7,3.0945831]
[1772655041960,0.002,2165.0,2164.7,3.0945831]
[1772655042562,0.002,2165.0,2164.7,1.93968866]
[1772655044707,0.002,2165.0,2164.8,1.15484109]
[1772655046878,0.002,2165.0,2164.7,4.61936437]
[1772655047078,0.002,2165.0,2164.7,6.55905303]
[1772655047468,1.96445308,2165.5,2164.8,1.93968866]
[1772655048390,3.11892548,2165.5,2164.8,1.93968866]
[1772655050098,1.953906,2165.3,2164.9,1.15478775]
[1772655050299,1.953906,2165.6,2164.9,1.15478775]
[1772655050470,0.002,2165.7,2165.0,1.9399537]
[1772655050979,0.002,2165.7,2165.1,3.09463477]
[1772655051179,0.002,2165.7,2164.8,4.61925189]
[1772655051180,1.955906,2165.7,2164.8,4.61925189]
[1772655051375,1.955906,2165.7,2164.8,2.49084109]
[1772655051900,1.955906,2165.7,2164.8,1.336]
[1772655052078,1.955906,2165.7,2164.2,4.62151143]
[1772655052079,1.953906,2165.5,2164.3,2.49106541]
[1772655052279,1.953906,2165.3,2164.3,2.49106541]
[1772655052592,1.953906,2165.1,2164.3,2.49106541]
[1772655052983,3.10859,2165.1,2164.3,1.15506541]
[1772655053179,1.953906,2165.0,2164.3,2.49106541]
[1772655054898,1.953906,2164.9,2164.3,1.15506541]
[1772655055202,1.953906,2164.9,2164.3,2.49206541]
[1772655055894,1.953906,2164.9,2164.5,0.001]
[1772655057414,1.953906,2164.8,2164.5,0.001]
[1772655058901,1.953906,2164.8,2164.1,6.52580866]
[1772655059387,1.953906,2164.7,2164.0,1.337]
[1772655059592,1.953906,2164.7,2164.0,2.49226762]
[1772655060312,1.953906,2164.7,2164.1,1.9399537]
[1772655060800,1.953906,2164.9,2164.1,1.9399537]
[1772655061120,1.953906,2164.9,2164.2,3.09511496]
[1772655061930,1.953906,2164.8,2164.2,3.09511496]
[1772655065893,3.10876032,2164.8,2164.2,3.09511496]
[1772655066122,1.953906,2164.8,2164.2,3.09511496]
[1772655068284,1.953906,2164.8,2164.3,1.9399537]
[1772655068514,1.953906,2165.0,2164.3,1.9399537]
[1772655068719,5.10536199,2164.9,2164.3,1.9399537]
[1772655068921,1.953906,2164.9,2164.2,1.15516126]
[1772655069429,1.953906,2164.9,2164.2,3.09511496]
[1772655069622,1.953906,2164.9,2164.3,1.9399537]
[1772655070088,1.953906,2164.9,2164.4,1.15505451]
[1772655070295,1.953906,2164.9,2164.4,3.09500821]
[1772655071115,1.955906,2165.1,2164.4,3.09500821]
[1772655071305,0.002,2164.9,2164.4,3.09500821]
[1772655072536,0.002,2164.9,2164.5,1.34]
[1772655072829,0.002,2164.9,2164.6,1.9399537]
[1772655073728,1.955906,2165.1,2164.6,1.9399537]
[1772655074530,1.955906,2165.1,2164.6,1.15494779]
[1772655075727,1.955906,2165.1,2164.6,3.09490149]
[1772655076717,0.002,2165.3,2164.7,1.9399537]
[1772655078633,0.002,2165.3,2164.9,1.78609297]
[1772655079037,0.002,2165.3,2165.0,1.34]
[1772655079336,0.002,2165.3,2165.0,3.12609297]
[1772655079513,0.002,2165.3,2165.1,1.78609297]
[1772655080238,1.82738698,2165.7,2165.1,1.78609297]
[1772655080538,0.002,2165.7,2165.2,2.94072071]
[1772655080930,1.82738698,2165.9,2165.3,1.78609297]
[1772655081249,6.64271297,2166.6,2165.2,1.15462774]
[1772655081250,2.16661252,2166.9,2165.4,1.78609297]
[1772655081539,1.82738698,2167.0,2165.6,1.78609297]
[1772655081930,0.002,2167.0,2165.6,1.78609297]
[1772655082508,1.82538698,2166.9,2165.8,1.78609297]
[1772655083018,0.002,2167.0,2165.8,1.78609297]
[1772655083536,1.82538698,2167.4,2166.0,1.78609297]
[1772655083754,2.97884834,2167.4,2166.0,1.78609297]
[1772655084042,4.61277333,2167.9,2166.0,1.78609297]
[1772655084227,4.07269586,2168.5,2165.9,2.70130335]
[1772655084228,1.82538698,2168.2,2166.4,1.78609297]
[1772655084568,1.82538698,2168.0,2166.7,1.1538284]
[1772655084833,1.57637749,2168.1,2166.7,4.27292137]
[1772655084834,1.82538698,2167.8,2166.7,4.27292137]
[1772655085132,1.82538698,2167.8,2166.8,1.78609297]
[1772655085534,2.6982316,2167.9,2166.8,1.78609297]
[1772655085535,0.002,2167.2,2166.8,1.78609297]
[1772655085858,1.15308334,2168.1,2166.8,1.78609297]
[1772655085859,1.82538698,2168.1,2166.8,1.78609297]
[1772655086038,0.002,2167.4,2166.8,1.78609297]
[1772655086742,0.002,2167.4,2166.9,3.01678025]
[1772655087252,0.002,2167.4,2167.0,1.86305835]
[1772655088769,0.002,2167.4,2167.1,3.01667378]
[1772655088952,0.002,2167.7,2167.1,3.01667378]
[1772655089323,0.002,2167.7,2167.1,2.49061543]
[1772655089324,1.90862726,2167.7,2167.1,2.49061543]
[1772655089546,1.90862726,2167.7,2166.8,1.15373932]
[1772655089747,1.90862726,2167.7,2166.6,5.95240455]
[1772655089748,1.90862726,2167.7,2166.6,1.337]
[1772655090452,1.90862726,2167.7,2166.3,4.616104]
[1772655090453,1.90862726,2167.7,2166.3,1.15404145]
[1772655090654,1.90862726,2167.7,2166.2,3.0171207]
[1772655090655,1.90662726,2167.3,2166.2,3.0171207]
[1772655090901,1.90662726,2167.3,2166.1,2.49211365]
[1772655091325,1.90662726,2167.3,2166.1,4.355172]
[1772655091526,1.90662726,2167.3,2166.2,1.86305835]
[1772655092532,1.90662726,2167.3,2166.1,2.49211365]
[1772655092726,1.90662726,2167.1,2166.1,2.49211365]
[1772655092931,1.90662726,2167.1,2166.1,4.355172]
[1772655093939,1.90662726,2167.1,2166.2,1.86305835]
[1772655094974,3.06011062,2167.4,2166.4,1.86305835]
[1772655096068,1.90662726,2167.3,2166.4,1.86305835]
[1772655096973,3.06018946,2167.2,2166.5,1.15393491]
[1772655097143,1.90662726,2167.1,2166.5,1.15393491]
[1772655097743,1.1535622,2167.2,2166.5,1.15393491]
[1772655097945,3.06018946,2167.2,2166.5,1.15393491]
[1772655098245,1.90662726,2167.1,2166.3,1.15401124]
[1772655098441,1.90662726,2167.1,2166.2,8.42619378]
[1772655098442,1.90662726,2167.1,2166.2,3.81]
[1772655098643,1.90662726,2166.9,2165.4,2.49548953]
[1772655098876,1.90662726,2166.6,2165.3,0.001]
[1772655099357,1.90662726,2166.4,2166.1,0.001]
[1772655099553,1.90662726,2166.2,2166.1,0.001]
[1772655101479,1.90662726,2166.0,2165.9,0.001]
[1772655101659,1.90662726,2166.0,2165.3,0.001]
[1772655103673,3.06088184,2165.9,2165.3,0.001]
[1772655106079,1.90662726,2165.8,2165.0,1.86405835]
[1772655106280,1.90662726,2165.8,2165.0,0.001]
[1772655106453,1.90662726,2165.6,2165.0,0.001]
[1772655107186,3.06088184,2165.9,2165.0,1.86405835]
[1772655108549,3.06088184,2165.9,2165.1,1.15468107]
[1772655111385,1.90662726,2165.9,2165.1,2.89846926]
[1772655112366,1.90662726,2165.9,2165.3,0.001]
[1772655112576,0.002,2165.7,2165.3,0.001]
[1772655112973,0.002,2165.9,2165.4,1.1545211]
[1772655113177,0.002,2165.9,2165.4,2.89830929]
[1772655113585,0.002,2165.9,2165.4,1.1545211]
[1772655113872,0.002,2165.9,2165.3,0.001]
[1772655113873,1.72189959,2165.9,2165.3,0.001]
[1772655114167,1.72189959,2165.9,2165.3,1.1555664]
[1772655114896,0.002,2165.9,2165.3,1.1555664]
[1772655115267,0.002,2165.9,2165.3,0.001]
[1772655117494,1.72189959,2165.9,2165.3,0.001]
[1772655119282,1.15430787,2165.8,2165.3,0.001]
[1772655120495,1.71989959,2165.7,2165.0,0.001]
[1772655120794,1.71989959,2165.7,2165.0,1.15573302]
[1772655120971,7.25195945,2165.9,2165.0,1.15573302]
[1772655120972,0.002,2165.9,2165.1,1.74378819]
[1772655121171,0.002,2165.9,2165.2,1.74378819]
[1772655121370,0.002,2165.9,2165.4,1.74378819]
[1772655122388,0.002,2166.2,2165.5,1.74378819]
[1772655122575,6.33503355,2166.8,2165.6,1.74378819]
[1772655122576,1.71989959,2166.8,2165.6,1.74378819]
[1772655122776,1.71989959,2166.8,2165.8,1.74378819]
[1772655123094,2.87367666,2166.8,2165.8,1.74378819]
[1772655123602,4.61625832,2167.2,2166.0,1.74378819]
[1772655123603,1.71989959,2167.1,2166.0,1.74378819]
[1772655125101,0.002,2166.2,2166.0,1.74378819]
[1772655125399,0.002,2167.2,2166.2,1.74378819]
[1772655125699,0.002,2167.2,2166.4,1.74378819]
[1772655126406,1.72189959,2167.2,2166.1,1.15412097]
[1772655126697,1.71989959,2167.0,2166.1,2.89790916]
[1772655126923,1.71989959,2165.9,2164.9,1.15475922]
[1772655127069,1.71989959,2165.7,2164.6,1.15493828]
[1772655127269,1.71989959,2165.7,2164.6,1.15491153]
[1772655127501,3.87207282,2165.6,2164.5,1.15500115]
[1772655127801,1.15441448,2165.6,2164.5,1.15500115]
[1772655128116,1.15441448,2165.6,2164.6,1.74378819]
[1772655128273,1.15430787,2165.8,2164.8,1.74478819]
[1772655128468,3.14457865,2165.7,2164.8,1.74478819]
[1772655128784,1.15429578,2165.9,2165.1,1.74378819]
[1772655128982,3.1449728,2165.8,2165.1,1.74378819]
[1772655129188,1.15429578,2165.9,2165.1,1.74378819]
[1772655129612,2.87419537,2165.9,2165.0,1.15569433]
[1772655129786,1.71989959,2165.8,2165.0,0.001]
[1772655130404,1.71989959,2165.6,2165.0,0.001]
[1772655130703,1.71989959,2165.6,2165.0,1.15573334]
[1772655131000,1.74393333,2165.8,2165.0,1.15573334]
[1772655131204,3.14550783,2165.7,2165.0,1.15573334]
[1772655131506,1.71989959,2165.7,2165.0,0.001]
[1772655131695,1.15441448,2165.6,2165.0,0.001]
[1772655133510,2.87430131,2165.7,2165.0,0.001]
[1772655135115,1.15440172,2165.7,2165.0,0.001]
[1772655135422,1.15425458,2165.9,2165.0,1.74478819]
[1772655135824,2.87413863,2166.0,2165.0,1.74478819]
[1772655136119,4.61641668,2166.2,2165.0,1.74478819]
[1772655136424,2.87410088,2166.0,2165.1,1.15468107]
[1772655136627,2.87410088,2166.0,2165.2,0.001]
[1772655137730,2.87410088,2166.0,2165.2,1.74478819]
[1772655138443,2.87410088,2166.0,2165.3,1.15457442]
[1772655142740,1.15420129,2166.0,2165.4,1.88337555]
[1772655142909,3.08040855,2166.3,2165.4,1.88337555]
[1772655143112,3.14660069,2166.2,2165.4,1.88337555]
[1772655143489,3.08040855,2166.3,2165.5,1.88337555]
[1772655143734,3.14628691,2166.2,2165.5,1.88337555]
[1772655144041,3.08040855,2166.3,2165.5,1.88337555]
[1772655144244,3.14614501,2166.2,2165.5,1.88337555]
[1772655144418,3.08040855,2166.3,2165.5,1.88337555]
[1772655144752,3.14642873,2166.2,2165.5,1.88337555]
[1772655144946,1.92632615,2166.3,2165.6,1.15441448]
[1772655145148,3.14641491,2166.2,2165.6,1.15441448]
[1772655145359,3.08040631,2166.3,2165.6,1.15441448]
[1772655145516,3.14465242,2166.2,2165.6,1.15441448]
[1772655145719,3.08040631,2166.3,2165.5,3.0378031]
[1772655145954,2.7196443,2166.2,2165.5,3.0378031]
[1772655146356,0.42492302,2166.2,2165.6,1.92313934]
[1772655147069,0.42492302,2166.2,2165.7,1.15436117]
[1772655147269,4.61554286,2166.6,2165.8,1.92313934]
[1772655147470,2.71969565,2166.5,2165.8,1.92313934]
[1772655147969,1.15386223,2166.7,2165.8,1.92313934]
[1772655148189,2.71982049,2166.6,2165.8,1.92313934]
[1772655148827,2.89978658,2166.8,2165.8,1.92313934]
[1772655149023,2.89978658,2166.8,2166.0,1.92313934]
[1772655149467,1.74600665,2166.7,2165.8,1.15427]
[1772655149667,1.74600665,2166.6,2165.8,1.15427]
[1772655150026,1.74600665,2166.6,2165.8,3.07740934]
[1772655150231,1.74600665,2166.6,2165.9,1.92313934]
[1772655150767,0.002,2166.4,2165.8,1.15427]
[1772655151277,0.002,2166.4,2165.7,6.54045961]
[1772655152584,0.002,2166.4,2165.8,1.92313934]
[1772655153266,0.002,2166.4,2165.9,3.07739392]
[1772655153445,0.002,2166.4,2166.0,1.92313934]
[1772655153648,0.002,2166.4,2166.1,1.92313934]
[1772655155265,0.002,2166.6,2166.3,1.92313934]
[1772655155468,0.002,2166.9,2166.3,1.92313934]
[1772655155771,1.1557353,2166.9,2166.3,1.92313934]
[1772655155966,1.74600665,2166.8,2166.1,1.15410505]
[1772655156177,1.74600665,2166.8,2166.0,3.26413934]
[1772655156378,4.46484157,2166.7,2166.0,4.41831936]
[1772655156563,1.74600665,2166.7,2166.0,3.26413934]
[1772655156768,1.74600665,2166.7,2166.0,4.41833168]
[1772655157269,1.15388165,2166.6,2166.0,4.41833168]
[1772655157472,2.89985704,2166.7,2166.0,4.41833168]
[1772655159470,1.1538103,2166.8,2166.1,1.92313934]
[1772655159667,0.002,2166.9,2166.1,1.92313934]
[1772655159868,1.15575028,2166.9,2166.1,1.92313934]
[1772655160282,0.002,2166.9,2166.1,1.92313934]
[1772655160602,1.15573415,2166.9,2166.1,1.92313934]
[1772655161594,1.15573415,2166.9,2166.1,1.1541361]
[1772655161595,1.74600665,2166.7,2166.1,1.1541361]
[1772655161974,1.15573415,2166.9,2166.2,1.92313934]
[1772655162497,0.002,2166.9,2166.2,1.92313934]
[1772655163486,0.002,2166.9,2166.3,1.15404145]
[1772655163687,0.002,2166.9,2166.4,1.92313934]
[1772655163881,0.002,2166.9,2166.5,3.26513934]
[1772655165516,0.002,2166.7,2166.6,3.07702099]
[1772655165679,0.002,2167.4,2166.7,1.92313934]
[1772655168107,0.002,2167.4,2166.9,1.92313934]
[1772655168303,1.74800665,2167.4,2166.8,1.15377515]
[1772655168508,1.74800665,2167.4,2166.7,1.342]
[1772655168803,1.85048193,2167.2,2166.7,1.2447461]
[1772655169105,0.002,2167.4,2166.7,2.39856047]
[1772655169295,3.14217282,2167.3,2166.7,1.2447461]
[1772655169604,1.85048193,2167.3,2166.7,1.2447461]
[1772655170193,4.29750541,2167.2,2166.7,1.2447461]
[1772655170394,1.1535622,2167.2,2166.7,1.2447461]
[1772655170712,3.00403219,2167.3,2166.7,2.39857248]
[1772655170912,3.14433581,2167.2,2166.7,2.39857248]
[1772655171096,3.00403219,2167.3,2166.7,2.39857248]
[1772655171291,3.14436755,2167.2,2166.7,2.39857248]
[1772655171496,3.00403219,2167.3,2166.7,2.39857248]
[1772655171691,2.72007157,2167.2,2166.7,2.39857248]
[1772655172198,1.15549921,2167.4,2166.7,2.39857248]
[1772655172404,3.14595406,2167.3,2166.7,2.39857248]
[1772655172603,3.14595406,2167.2,2166.7,2.39857248]
[1772655172799,1.15549921,2167.4,2166.7,2.39857248]
[1772655173005,0.002,2167.4,2166.8,1.82230169]
[1772655174193,0.002,2167.7,2167.0,1.82230169]
[1772655174398,3.14883813,2167.6,2167.0,1.82230169]
[1772655174628,0.002,2167.7,2167.0,1.82230169]
[1772655174797,0.4255577,2167.6,2167.0,1.82230169]
[1772655175001,0.002,2167.7,2167.0,1.82230169]
[1772655175316,3.15027524,2167.6,2167.0,1.82230169]
[1772655175505,0.002,2167.7,2167.0,1.82230169]
[1772655176625,0.002,2167.7,2167.1,1.15361543]
[1772655177418,0.002,2167.7,2167.2,1.82230169]
[1772655177599,0.002,2167.7,2167.3,1.82230169]
[1772655177800,5.18345603,2168.5,2167.3,1.82230169]
[1772655178041,3.15057991,2168.4,2167.3,1.82230169]
[1772655178203,2.27624591,2168.3,2167.3,1.82230169]
[1772655178413,1.85048193,2168.3,2167.3,1.82230169]
[1772655178726,1.15313653,2168.0,2167.4,1.15345575]
[1772655178919,0.002,2167.5,2167.4,1.15345575]
[1772655179120,1.15313653,2168.0,2167.3,2.97580195]
[1772655179322,0.002,2167.7,2167.3,2.97580195]
[1772655180021,0.002,2167.7,2167.4,1.82230169]
[1772655180403,0.002,2168.0,2167.4,1.82230169]
[1772655180603,0.002,2168.0,2167.5,1.15340253]
[1772655180820,0.002,2168.0,2167.5,2.97570422]
[1772655181070,0.002,2168.0,2167.6,1.82230169]
[1772655181819,3.00335257,2168.5,2167.8,1.82230169]
[1772655182018,1.85048193,2168.5,2167.8,1.82230169]